bitfinex-derivatives/quotes_BTCF0:USTF0_20251023
["timestamp","ask_amount","ask_price","bid_price","bid_amount"]
[1761235511123,0.001,110080.0,110070.0,0.51181969]
[1761235512822,0.01866,110080.0,110070.0,0.51181969]
[1761235513124,0.001,110080.0,110070.0,0.51181969]
[1761235513720,0.01866,110080.0,110070.0,0.51181969]
[1761235513917,0.19982374,110080.0,110070.0,0.53612776]
[1761235514515,0.01866,110080.0,110070.0,0.53612776]
[1761235515524,0.001,110080.0,110070.0,0.67532343]
[1761235516025,0.001,110080.0,110070.0,0.51181969]
[1761235516215,0.001,110080.0,110070.0,0.67532343]
[1761235517521,0.01866,110080.0,110070.0,0.51181969]
[1761235517826,0.001,110080.0,110070.0,0.51181969]
[1761235518631,0.001,110080.0,110070.0,0.67532343]
[1761235519122,0.001,110080.0,110070.0,0.72422899]
[1761235519323,0.0244713,110100.0,110090.0,0.1475366]
[1761235519519,0.08059021,110110.0,110100.0,0.1475284]
[1761235519715,0.08059021,110110.0,110100.0,0.4275284]
[1761235519918,0.0665913,110110.0,110100.0,0.43660685]
[1761235520327,0.26275395,110110.0,110100.0,0.43660685]
[1761235520521,0.35355405,110110.0,110100.0,0.43660685]
[1761235520724,0.26475395,110110.0,110100.0,0.43660685]
[1761235523427,0.23209504,110110.0,110100.0,0.43660685]
[1761235524628,0.21343504,110110.0,110100.0,0.46091999]
[1761235524822,0.23209504,110110.0,110100.0,0.46091999]
[1761235525018,0.32289524,110110.0,110100.0,0.46091999]
[1761235525323,0.1361884,110100.0,110090.0,0.02304]
[1761235525529,0.81593479,110100.0,110090.0,0.33]
[1761235525720,0.0908249,110080.0,110070.0,0.17343344]
[1761235525918,0.6362198,110080.0,110070.0,0.33829]
[1761235526321,0.6362198,110080.0,110070.0,0.4291231]
[1761235528227,0.6362198,110080.0,110070.0,0.33829]
[1761235528930,0.6362198,110080.0,110070.0,0.4291232]
[1761235529729,0.6362198,110080.0,110070.0,0.33829]
[1761235529926,0.6362198,110080.0,110070.0,0.28]
[1761235530131,0.1281614,110060.0,110050.0,0.08150314]
[1761235530331,0.61174514,110060.0,110050.0,0.42150314]
[1761235530524,0.61174514,110060.0,110050.0,0.39719]
[1761235530726,0.4482414,110060.0,110050.0,0.39719]
[1761235530934,0.61174514,110060.0,110050.0,0.39719]
[1761235531733,0.61174514,110060.0,110040.0,0.03791314]
[1761235531734,0.0908498,110050.0,110040.0,0.03791314]
[1761235531926,0.30085097,110050.0,110040.0,0.37310314]
[1761235532627,0.30085097,110050.0,110040.0,0.34879]
[1761235532826,0.45535154,110050.0,110040.0,0.34879]
[1761235533031,0.1281698,110050.0,110040.0,0.4396479]
[1761235533220,0.29176067,110050.0,110040.0,0.34879]
[1761235533529,0.8846427,110050.0,110040.0,0.29]
[1761235533828,0.1281862,110030.0,110020.0,0.06333442]
[1761235534131,0.61185707,110030.0,110020.0,0.47420882]
[1761235534320,0.4482662,110030.0,110020.0,0.48350191]
[1761235534521,0.61185707,110030.0,110020.0,0.48350191]
[1761235534726,0.77544794,110030.0,110020.0,0.38333442]
[1761235534927,0.61185707,110030.0,110020.0,0.38333442]
[1761235535440,0.61185707,110030.0,110020.0,0.39226686]
[1761235535828,0.77544794,110030.0,110020.0,0.38333442]
[1761235536030,0.77544794,110030.0,110020.0,0.38433442]
[1761235536432,1.17544794,110030.0,110020.0,0.32554442]
[1761235536736,1.17544794,110030.0,110020.0,0.00554442]
[1761235537039,0.4727313,110030.0,110020.0,0.43446882]
[1761235537238,0.61189707,110030.0,110020.0,0.34359442]
[1761235537436,0.1281862,110030.0,110020.0,0.43446882]
[1761235537739,0.61193707,110030.0,110020.0,0.34359442]
[1761235538038,0.29177707,110030.0,110020.0,0.43446882]
[1761235538232,0.61193707,110030.0,110020.0,0.43446882]
[1761235539232,0.20091087,110030.0,110020.0,0.43446882]
[1761235539433,0.29177407,110040.0,110030.0,0.05805]
[1761235539630,0.93911581,110040.0,110030.0,0.35805]
[1761235539829,0.94491581,110040.0,110030.0,0.3]
[1761235540034,0.94491581,110040.0,110030.0,0.34519]
[1761235540235,0.4483432,110040.0,110030.0,0.35805]
[1761235540433,0.77552494,110040.0,110030.0,0.4489161]
[1761235540830,0.65288171,110040.0,110030.0,0.4489161]
[1761235541037,0.65288171,110040.0,110030.0,0.35805]
[1761235541940,1.25742022,110040.0,110030.0,0.02281]
[1761235542232,1.25742022,110040.0,110030.0,0.31281]
[1761235542434,1.25742022,110040.0,110030.0,0.29]
[1761235542635,1.25742022,110040.0,110030.0,0.31281]
[1761235542841,1.05288171,110040.0,110030.0,0.34805]
[1761235543641,0.73272171,110040.0,110030.0,0.34805]
[1761235543842,1.05392171,110040.0,110030.0,0.34805]
[1761235544042,0.73372171,110040.0,110030.0,0.34805]
[1761235544346,1.05392171,110040.0,110030.0,0.34805]
[1761235545040,0.73372171,110040.0,110030.0,0.34805]
[1761235545341,1.05392171,110040.0,110030.0,0.34805]
[1761235546044,1.25846022,110040.0,110030.0,0.36281]
[1761235546242,0.1095262,110030.0,110020.0,0.06259442]
[1761235546542,0.33272471,110030.0,110020.0,0.36259442]
[1761235549544,0.33372471,110030.0,110020.0,0.36259442]
[1761235550031,0.1291862,110030.0,110020.0,0.45346882]
[1761235550230,0.33372471,110030.0,110020.0,0.45346882]
[1761235550843,0.33372471,110030.0,110020.0,0.36259442]
[1761235552746,0.65396471,110030.0,110020.0,0.45346882]
[1761235553539,0.33372471,110030.0,110020.0,0.45346882]
[1761235553740,0.03832,110030.0,110020.0,0.45346882]
[1761235553942,0.35856,110030.0,110020.0,0.45346882]
[1761235554245,0.001,110030.0,110020.0,0.65800733]
[1761235554445,0.001,110030.0,110020.0,0.45346882]
[1761235554940,0.32024,110040.0,110030.0,0.0908662]
[1761235555143,0.11517958,110050.0,110040.0,0.1474479]
[1761235555334,0.37722879,110050.0,110040.0,0.4674479]
[1761235555535,0.34456988,110050.0,110040.0,0.4674479]
[1761235555742,0.05698879,110060.0,110050.0,0.1474397]
[1761235556039,0.32024,110060.0,110050.0,0.4674397]
[1761235556239,0.02432988,110070.0,110060.0,0.1046014]
[1761235556442,0.47288298,110070.0,110060.0,0.4574314]
[1761235556644,0.65309161,110070.0,110060.0,0.4574314]
[1761235557237,0.65309161,110070.0,110060.0,0.36659]
[1761235557438,0.67742149,110070.0,110060.0,0.36659]
[1761235557637,0.67742149,110070.0,110060.0,0.4574314]
[1761235558641,0.68042149,110070.0,110060.0,0.4574314]
[1761235559744,0.68042149,110070.0,110060.0,0.36659]
[1761235559943,0.68042149,110070.0,110060.0,0.4574314]
[1761235560950,0.55226839,110070.0,110060.0,0.4574314]
[1761235561147,0.34772988,110070.0,110060.0,0.4574314]
[1761235561647,0.3234,110070.0,110060.0,0.4574314]
[1761235561844,0.003,110070.0,110060.0,0.4574314]
[1761235565652,0.003,110070.0,110060.0,0.7777914]
[1761235565949,0.003,110070.0,110060.0,1.1777914]
[1761235567852,0.40195525,110100.0,110090.0,0.1474067]
[1761235567853,0.07573395,110100.0,110090.0,0.1474067]
[1761235568054,0.33746361,110110.0,110100.0,0.05659]
[1761235568256,0.65786361,110110.0,110100.0,0.4773984]
[1761235568848,0.56705851,110110.0,110100.0,0.4773984]
[1761235569159,0.36252,110110.0,110100.0,0.4773984]
[1761235569454,0.3252,110110.0,110100.0,0.4773984]
[1761235569850,0.0048,110110.0,110100.0,0.4773984]
[1761235570558,0.0048,110110.0,110100.0,0.80726315]
[1761235571057,0.0058,110110.0,110100.0,0.80726315]
[1761235572247,0.0058,110110.0,110100.0,1.41180166]
[1761235572453,0.0058,110110.0,110100.0,1.20726315]
[1761235572952,1e-07,110110.0,110100.0,1.41180166]
[1761235573157,0.0045,110140.0,110130.0,0.1473737]
[1761235573454,0.0045,110140.0,110130.0,0.4373737]
[1761235574051,0.04182,110140.0,110130.0,0.4373737]
[1761235574250,0.1325955,110140.0,110130.0,0.4373737]
[1761235576151,0.0045,110140.0,110130.0,0.4373737]
[1761235576353,0.0952755,110140.0,110130.0,0.4373737]
[1761235577753,0.1139355,110140.0,110130.0,0.4373737]
[1761235578264,0.0952755,110140.0,110130.0,0.4373737]
[1761235578454,0.1325955,110140.0,110130.0,0.4373737]
[1761235579165,0.0952755,110140.0,110130.0,0.4373737]
[1761235579759,0.1139355,110140.0,110130.0,0.4373737]
[1761235579961,0.1325955,110140.0,110130.0,0.4373737]
[1761235581071,0.33713401,110140.0,110130.0,0.34659]
[1761235581953,0.1281121,110120.0,110110.0,0.02176]
[1761235582256,0.1281285,110100.0,110090.0,0.05659]
[1761235582461,0.33266701,110100.0,110090.0,0.4874067]
[1761235582859,0.33266701,110100.0,110090.0,0.39659]
[1761235583164,0.1281285,110100.0,110090.0,0.4874067]
[1761235583664,0.03732,110100.0,110090.0,0.4874067]
[1761235584060,0.1281174,110120.0,110110.0,0.05807]
[1761235584259,0.65309591,110120.0,110110.0,0.34807]
[1761235585464,0.65309591,110120.0,110110.0,0.4388703]
[1761235586267,0.65309591,110120.0,110110.0,0.34807]
[1761235586462,0.65309591,110120.0,110110.0,0.32807]
[1761235586668,1.05309591,110120.0,110110.0,0.27]
[1761235587164,1.05309591,110120.0,110110.0,0.02217]
[1761235587373,0.1281285,110100.0,110090.0,0.05713]
[1761235587669,0.65306701,110100.0,110090.0,0.34713]
[1761235588363,0.1281448,110080.0,110070.0,0.05722]
[1761235588674,0.1281531,110070.0,110060.0,0.15260417]
[1761235588863,0.03732,110070.0,110060.0,0.44260417]
[1761235589162,0.33269161,110070.0,110060.0,0.44260417]
[1761235589754,0.03732,110070.0,110060.0,0.44360417]
[1761235589960,0.0908329,110070.0,110060.0,0.44360417]
[1761235590460,0.65324911,110080.0,110070.0,0.134203]
[1761235590655,0.65324911,110080.0,110070.0,0.424203]
[1761235591071,0.1281371,110090.0,110080.0,0.1129948]
[1761235591265,0.4300371,110090.0,110080.0,0.4380448]
[1761235591870,0.32056,110090.0,110080.0,0.4380448]
[1761235595265,0.32056,110090.0,110080.0,0.7587248]
[1761235596671,0.32056,110090.0,110080.0,0.4380448]
[1761235596970,0.32056,110090.0,110080.0,0.7586848]
[1761235598375,0.11522114,110110.0,110100.0,0.1480281]
[1761235598376,0.47318114,110110.0,110100.0,0.1480281]
[1761235598569,0.47318114,110110.0,110100.0,0.34722]
[1761235598765,0.81554574,110110.0,110100.0,0.438028]
[1761235598967,0.7911307,110110.0,110100.0,0.438028]
[1761235601577,0.7911307,110110.0,110100.0,0.16722]
[1761235601775,0.7911307,110110.0,110100.0,0.4780281]
[1761235602274,0.7911307,110110.0,110100.0,0.33722]
[1761235602675,1.1911307,110110.0,110100.0,0.28]
[1761235602877,1.21554574,110110.0,110100.0,0.28]
[1761235603264,0.128128,110100.0,110090.0,0.05722]
[1761235603465,0.128128,110100.0,110080.0,0.05722]
[1761235603466,0.1281363,110090.0,110080.0,0.05722]
[1761235603664,0.1281445,110080.0,110070.0,0.05722]
[1761235603872,0.4705091,110080.0,110070.0,0.39722]
[1761235604076,0.8705091,110080.0,110070.0,0.34]
[1761235604273,0.8705091,110080.0,110060.0,0.00454277]
[1761235604274,0.1329528,110070.0,110060.0,0.00454277]
[1761235604474,0.7959174,110070.0,110060.0,0.29454277]
[1761235604773,0.7911174,110070.0,110060.0,0.35176277]
[1761235605475,0.7911174,110070.0,110060.0,0.35276277]
[1761235606780,0.81553244,110070.0,110060.0,0.35276277]
[1761235607570,0.81553244,110070.0,110060.0,0.35176277]
[1761235609681,0.81553244,110070.0,110060.0,0.33056277]
[1761235609882,0.81553244,110070.0,110060.0,0.35176277]
[1761235610381,0.7911174,110070.0,110060.0,0.44260387]
[1761235610778,0.7911174,110070.0,110060.0,0.35176277]
[1761235611080,0.81553244,110070.0,110060.0,0.34176277]
[1761235611278,0.81553244,110070.0,110060.0,0.28454277]
[1761235611587,1.24819135,110070.0,110060.0,0.00454277]
[1761235611781,1.27279265,110070.0,110060.0,0.00454277]
[1761235612077,1.27279265,110070.0,110060.0,0.33671277]
[1761235612282,1.27279265,110070.0,110060.0,0.02671277]
[1761235613082,1.27279265,110070.0,110060.0,0.00454277]
[1761235613281,1.27279265,110070.0,110060.0,0.02726277]
[1761235613576,0.81576398,110070.0,110060.0,0.34214277]
[1761235614783,0.47339938,110070.0,110060.0,0.40214277]
[1761235615082,0.81576398,110070.0,110060.0,0.40214277]
[1761235615478,0.81576398,110070.0,110060.0,0.34454277]
[1761235617380,0.47339938,110070.0,110060.0,0.36726277]
[1761235617575,0.81576398,110070.0,110060.0,0.36726277]
[1761235618885,0.81576398,110070.0,110060.0,0.40214277]
[1761235619389,0.81576398,110070.0,110060.0,0.36726277]
[1761235620378,0.81576398,110070.0,110060.0,0.31214277]
[1761235620785,0.81576398,110070.0,110060.0,0.40298357]
[1761235620984,0.47339938,110070.0,110060.0,0.40298357]
[1761235621286,0.81576398,110070.0,110060.0,0.41217012]
[1761235621490,0.7913574,110070.0,110060.0,0.41217012]
[1761235622186,0.4489928,110070.0,110060.0,0.41217012]
[1761235622384,0.4116723,110070.0,110060.0,0.41217012]
[1761235622882,0.32084,110070.0,110060.0,0.41217012]
[1761235626184,0.09438549,110090.0,110080.0,0.01329]
[1761235626377,0.02440658,110090.0,110080.0,0.4484241]
[1761235626686,0.05706549,110100.0,110090.0,0.1484159]
[1761235626874,0.02440658,110100.0,110090.0,0.4484159]
[1761235627079,0.05706549,110100.0,110090.0,0.4484159]
[1761235627280,0.02440658,110100.0,110090.0,0.4484159]
[1761235627477,0.38268658,110110.0,110100.0,0.1484076]
[1761235627681,0.35828,110110.0,110100.0,0.4884076]
[1761235628089,0.38268658,110110.0,110100.0,0.4884076]
[1761235628391,0.32096,110110.0,110100.0,0.4884076]
[1761235628786,0.35828,110110.0,110100.0,0.4884076]
[1761235628983,0.35828,110110.0,110100.0,0.4976218]
[1761235629287,0.35828,110110.0,110100.0,0.3976]
[1761235629492,0.7064446,110110.0,110100.0,0.14]
[1761235629687,0.73085118,110110.0,110100.0,0.17272]
[1761235629888,0.72505118,110110.0,110100.0,0.2076]
[1761235630089,0.72505118,110110.0,110100.0,0.0576]
[1761235630090,0.75771009,110110.0,110100.0,0.0576]
[1761235630290,0.72505118,110110.0,110100.0,0.0576]
[1761235630586,0.72505118,110110.0,110100.0,0.1976]
[1761235630990,0.72505118,110110.0,110100.0,0.0576]
[1761235631491,0.81585058,110110.0,110100.0,0.0576]
[1761235634091,0.47348598,110110.0,110100.0,0.0576]
[1761235634391,0.81585058,110110.0,110100.0,0.4584076]
[1761235634590,0.38268658,110110.0,110100.0,0.4584076]
[1761235634790,0.4490794,110110.0,110100.0,0.4584076]
[1761235635392,0.4117594,110110.0,110100.0,0.4584076]
[1761235635592,0.4304194,110110.0,110100.0,0.4584076]
[1761235636090,0.4490794,110110.0,110100.0,0.4584076]
[1761235636292,0.01866,110110.0,110100.0,0.4584076]
[1761235636489,0.1094594,110110.0,110100.0,0.4584076]
[1761235636694,0.1281194,110110.0,110100.0,0.4584076]
[1761235637086,0.03732,110110.0,110100.0,0.4584076]
[1761235637789,0.1281194,110110.0,110100.0,0.4584076]
[1761235641194,0.03732,110110.0,110100.0,0.4584076]
[1761235641389,0.1281194,110110.0,110100.0,0.4584076]
[1761235643091,0.470484,110110.0,110100.0,0.3576]
[1761235643686,0.478544,110110.0,110100.0,0.3576]
[1761235643900,0.50295058,110110.0,110100.0,0.3576]
[1761235645602,0.50295058,110110.0,110100.0,0.0576]
[1761235645812,0.50295058,110110.0,110090.0,0.01329]
[1761235645813,0.05172,110080.0,110070.0,0.1357023]
[1761235646101,0.8058687,110080.0,110070.0,0.33836]
[1761235646297,0.8058687,110080.0,110070.0,0.28]
[1761235646697,0.8058687,110080.0,110070.0,0.30266]
[1761235646998,0.83026528,110080.0,110070.0,0.32487]
[1761235647692,0.83026528,110080.0,110070.0,0.28]
[1761235647899,0.83026528,110080.0,110070.0,0.32487]
[1761235648293,0.1355724,110070.0,110060.0,0.06290277]
[1761235648495,0.485997,110070.0,110060.0,0.37290277]
[1761235648894,0.51039358,110070.0,110060.0,0.31454277]
[1761235649498,0.51039358,110070.0,110060.0,0.37290277]
[1761235650101,0.51039358,110070.0,110060.0,0.35941277]
[1761235650696,0.51039358,110070.0,110060.0,0.00454277]
[1761235651803,0.54292236,110070.0,110060.0,0.00454277]
[1761235652704,0.51039358,110070.0,110060.0,0.00454277]
[1761235653104,0.54292236,110070.0,110060.0,0.00454277]
[1761235653308,0.51039358,110070.0,110060.0,0.00454277]
[1761235654702,0.372474,110070.0,110060.0,0.00454277]
[1761235656209,0.05735,110040.0,110020.0,0.15377362]
[1761235656408,0.66101042,110030.0,110020.0,0.49377362]
[1761235656609,0.66101042,110030.0,110020.0,0.50279228]
[1761235656907,0.57014502,110030.0,110020.0,0.50279228]
[1761235657407,0.57014502,110030.0,110020.0,0.50379228]
[1761235657711,0.3657,110030.0,110020.0,0.50379228]
[1761235657905,0.3657,110030.0,110020.0,0.50479228]
[1761235658107,0.4565654,110030.0,110020.0,0.50479228]
[1761235658715,0.3657,110030.0,110020.0,0.50479228]
[1761235659413,0.4565654,110030.0,110020.0,0.50479228]
[1761235659713,0.4565654,110030.0,110020.0,0.50379228]
[1761235660214,0.66101042,110030.0,110020.0,0.40390442]
[1761235660415,0.66101042,110030.0,110020.0,0.50387136]
[1761235661213,0.66101042,110030.0,110020.0,0.40390442]
[1761235662109,0.66101042,110030.0,110020.0,0.06390442]
[1761235662409,0.66101042,110030.0,110020.0,0.38390442]
[1761235662898,0.66101042,110030.0,110020.0,0.47477812]
[1761235663713,0.66101042,110030.0,110020.0,0.38390442]
[1761235664609,0.66907042,110030.0,110020.0,0.06390442]
[1761235664802,0.66907042,110030.0,110020.0,0.35041442]
[1761235667715,0.66907042,110030.0,110020.0,0.05041442]
[1761235667910,0.1482237,110020.0,110010.0,0.02266]
[1761235668115,0.1482319,110010.0,110000.0,0.1492498]
[1761235668321,0.67375692,110010.0,110000.0,0.4592498]
[1761235669223,0.67375692,110010.0,110000.0,0.35487]
[1761235669914,0.67375692,110010.0,110000.0,0.33266]
[1761235670220,0.67375692,110010.0,110000.0,0.31]
[1761235670519,0.1482403,110000.0,109990.0,9.171e-05]
[1761235670720,0.35268532,110000.0,109990.0,0.28009171]
[1761235671025,0.35268532,110000.0,109990.0,0.2934063]
[1761235672115,0.35268532,110000.0,109990.0,0.2944063]
[1761235672516,0.38607912,110000.0,109990.0,0.2944063]
[1761235673124,0.38607912,110000.0,109990.0,0.2934063]
[1761235675128,0.37707034,110000.0,109990.0,0.3160663]
[1761235675827,0.0908987,109990.0,109980.0,0.00454607]
[1761235676027,0.67324372,109990.0,109980.0,0.32454607]
[1761235676328,0.1345452,109970.0,109960.0,0.05864]
[1761235676534,0.6643916,109970.0,109960.0,0.28]
[1761235676938,0.1476235,109960.0,109950.0,0.1495717]
[1761235677235,0.45600032,109960.0,109950.0,0.4695717]
[1761235679240,0.45600032,109960.0,109950.0,0.4715717]
[1761235679431,0.67351534,109960.0,109950.0,0.36715]
[1761235679631,0.67351534,109960.0,109950.0,0.04515]
[1761235679836,0.14764,109940.0,109930.0,0.04515]
[1761235680035,0.68249143,109940.0,109930.0,0.02195]
[1761235680333,0.1476483,109930.0,109920.0,0.04515]
[1761235680639,0.1476483,109930.0,109920.0,0.37515]
[1761235680640,0.35218147,109930.0,109920.0,0.37515]
[1761235682336,0.35218147,109930.0,109900.0,0.15381768]
[1761235682337,0.04363,109910.0,109900.0,0.15381768]
[1761235682640,0.56963502,109910.0,109900.0,0.46381768]
[1761235682936,0.569712,109910.0,109900.0,0.46381768]
[1761235683137,0.36526698,109910.0,109900.0,0.46381768]
[1761235683542,0.45623198,109910.0,109900.0,0.37284938]
[1761235683834,0.660677,109910.0,109900.0,0.06284938]
[1761235684046,0.660677,109910.0,109900.0,0.33969938]
[1761235684228,0.660677,109910.0,109900.0,0.04969938]
[1761235684632,0.660677,109910.0,109900.0,0.35069938]
[1761235684838,0.1346033,109900.0,109890.0,0.03645784]
[1761235685034,0.1346982,109900.0,109890.0,0.33840784]
[1761235685239,0.33914322,109900.0,109890.0,0.42938944]
[1761235685442,0.33914322,109900.0,109890.0,0.33840784]
[1761235685641,0.24816992,109900.0,109890.0,0.43864418]
[1761235685838,9.49e-05,109900.0,109890.0,0.43864418]
[1761235686147,0.2444149,109900.0,109890.0,0.83864418]
[1761235686444,0.3011149,109900.0,109890.0,0.43864418]
[1761235686639,0.50555992,109900.0,109890.0,0.42549418]
[1761235686834,0.49248992,109900.0,109890.0,0.43864418]
[1761235687040,0.2890449,109900.0,109890.0,0.43864418]
[1761235687233,0.2675249,109900.0,109890.0,0.43864418]
[1761235687732,0.2890449,109900.0,109890.0,0.43864418]
[1761235688144,0.0447249,109900.0,109890.0,0.43864418]
[1761235688342,0.3227749,109900.0,109890.0,0.43864418]
[1761235688740,0.0010949,109900.0,109890.0,1.0430892]
[1761235689045,0.0010949,109900.0,109890.0,0.83864418]
[1761235689244,0.0222049,109900.0,109890.0,0.83864418]
[1761235689439,0.0437249,109900.0,109890.0,0.43864418]
[1761235689742,9.49e-05,109900.0,109890.0,0.43864418]
[1761235690540,9.49e-05,109900.0,109890.0,0.83864418]
[1761235691146,0.0910681,109900.0,109890.0,0.83864418]
[1761235691347,0.33914312,109900.0,109890.0,0.43864418]
[1761235692048,0.33914312,109900.0,109890.0,0.43964418]
[1761235692646,0.1346981,109900.0,109890.0,0.43964418]
[1761235692952,0.33914312,109900.0,109890.0,0.33940784]
[1761235693249,0.33914312,109900.0,109890.0,0.32625784]
[1761235693439,0.1346981,109900.0,109890.0,0.41723944]
[1761235693640,0.0437249,109900.0,109890.0,0.41723944]
[1761235693841,0.3217349,109900.0,109890.0,0.41723944]
[1761235694244,0.4563382,109900.0,109890.0,0.41723944]
[1761235695051,0.4348182,109900.0,109890.0,0.41723944]
[1761235695249,0.3217349,109900.0,109890.0,0.41723944]
[1761235695462,0.4127082,109900.0,109890.0,0.41723944]
[1761235695746,0.4563382,109900.0,109890.0,0.41723944]
[1761235695941,0.4127082,109900.0,109890.0,0.43038944]
[1761235696242,0.4563382,109900.0,109890.0,0.43038944]
[1761235696754,0.3653649,109900.0,109890.0,0.43038944]
[1761235697052,0.3438049,109900.0,109890.0,0.83038944]
[1761235697448,0.4562982,109900.0,109890.0,0.81723944]
[1761235697652,0.4562982,109900.0,109890.0,0.43038944]
[1761235698047,0.67381322,109900.0,109890.0,0.41723944]
[1761235698657,0.67381322,109900.0,109890.0,0.43038944]
[1761235699754,0.4693682,109900.0,109890.0,0.43038944]
[1761235700048,0.4693682,109900.0,109890.0,0.33940784]
[1761235700449,0.4693682,109900.0,109890.0,0.43038924]
[1761235700855,0.67381322,109900.0,109890.0,0.43038924]
[1761235703451,0.67381322,109900.0,109890.0,0.33940784]
[1761235703651,0.67381322,109900.0,109890.0,0.43038924]
[1761235704356,0.67381322,109900.0,109890.0,0.41723924]
[1761235704553,0.67374322,109900.0,109890.0,0.43083924]
[1761235704756,0.67374322,109900.0,109890.0,0.41723924]
[1761235705152,0.67374322,109900.0,109890.0,0.18625784]
[1761235705351,0.1479971,109880.0,109870.0,0.04507]
[1761235705556,0.67420212,109880.0,109870.0,0.36507]
[1761235706051,0.4697571,109880.0,109870.0,0.13507]
[1761235706255,0.69844928,109880.0,109870.0,0.136068]
[1761235706452,0.00011208,109880.0,109870.0,0.488848]
[1761235706655,0.00011208,109880.0,109870.0,0.489848]
[1761235706950,0.00011208,109880.0,109870.0,1.09429302]
[1761235707343,0.00011208,109880.0,109870.0,0.889848]
[1761235707746,0.00011208,109880.0,109870.0,1.09429302]
[1761235708458,0.00011208,109880.0,109870.0,1.12671054]
[1761235709249,0.02424716,109900.0,109890.0,0.1358111]
[1761235709460,0.05677594,109910.0,109900.0,0.1358028]
[1761235709661,0.02424716,109910.0,109900.0,0.4758028]
[1761235709854,0.52951704,109920.0,109910.0,0.1357946]
[1761235710059,0.52951704,109920.0,109910.0,0.45499721]
[1761235710356,0.52951704,109920.0,109910.0,0.36403261]
[1761235710552,0.73405272,109920.0,109910.0,0.34130261]
[1761235710755,0.73405272,109920.0,109910.0,0.3321]
[1761235711054,0.73405272,109920.0,109910.0,0.35483]
[1761235711257,0.73405272,109920.0,109910.0,0.04483]
[1761235711455,0.1509931,109900.0,109890.0,0.0221]
[1761235711758,0.70985756,109900.0,109890.0,0.29]
[1761235711944,0.0909857,109890.0,109870.0,0.3726045]
[1761235712253,8.936e-05,109880.0,109870.0,0.71156906]
[1761235713247,8.936e-05,109880.0,109870.0,0.74398658]
[1761235714356,8.936e-05,109880.0,109870.0,0.74498658]
[1761235715160,8.936e-05,109880.0,109870.0,1.14498658]
[1761235716453,8.936e-05,109880.0,109870.0,1.48864251]
[1761235716661,8.936e-05,109880.0,109870.0,1.53754807]
[1761235717055,0.02452426,109900.0,109890.0,0.1485914]
[1761235717360,0.16195736,109900.0,109890.0,0.4485914]
[1761235717555,0.17551736,109900.0,109890.0,0.4358114]
[1761235717962,0.17551736,109900.0,109890.0,0.4485914]
[1761235718160,0.07098426,109900.0,109890.0,0.4485914]
[1761235718863,0.16195736,109900.0,109890.0,0.4485914]
[1761235719558,0.07098426,109900.0,109890.0,0.4485914]
[1761235719761,0.80259431,109910.0,109900.0,0.1358031]
[1761235719762,0.02452426,109910.0,109900.0,0.1358031]
[1761235720065,0.05705304,109910.0,109900.0,0.4358031]
[1761235720254,0.51643324,109920.0,109910.0,0.04483]
[1761235720454,0.51643324,109920.0,109910.0,0.4357946]
[1761235721254,0.51643324,109920.0,109910.0,0.44504255]
[1761235721758,0.51743324,109920.0,109910.0,0.44504255]
[1761235722557,0.51943324,109920.0,109910.0,0.44504255]
[1761235723065,0.07398426,109920.0,109910.0,0.44504255]
[1761235723361,0.39590426,109920.0,109910.0,0.44504255]
[1761235724162,0.34944426,109920.0,109910.0,0.44504255]
[1761235724361,0.32492,109920.0,109910.0,0.44504255]
[1761235724666,0.003,109920.0,109910.0,1.11061848]
[1761235724963,0.003,109920.0,109910.0,0.76696255]
[1761235726653,0.002,109920.0,109910.0,1.51061848]
[1761235727063,0.002,109920.0,109910.0,1.16696255]
[1761235727869,0.50110243,109930.0,109920.0,0.1357864]
[1761235728074,0.50110243,109930.0,109920.0,0.4357864]
[1761235728366,0.45464243,109930.0,109920.0,0.4357864]
[1761235728959,0.45464243,109930.0,109920.0,0.4485664]
[1761235729257,0.13272243,109930.0,109920.0,0.4485664]
[1761235730472,0.1142299,109940.0,109930.0,0.1485581]
[1761235730767,0.1373999,109940.0,109930.0,0.4785581]
[1761235733066,0.1504699,109940.0,109930.0,0.4657781]
[1761235733263,0.1504699,109940.0,109930.0,0.4786181]
[1761235733658,0.1504699,109940.0,109930.0,0.4657781]
[1761235734366,0.1504699,109940.0,109930.0,0.4786181]
[1761235734767,0.1504699,109940.0,109930.0,0.4657781]
[1761235735567,0.1504699,109940.0,109930.0,0.4786181]
[1761235736171,0.1504699,109940.0,109930.0,0.4657781]
[1761235736468,0.49412583,109940.0,109930.0,0.4657781]
[1761235736870,0.1504699,109940.0,109930.0,0.4657781]
[1761235737262,0.1504699,109940.0,109930.0,0.37483]
[1761235737570,0.89412583,109940.0,109930.0,0.37483]
[1761235737870,0.89412583,109940.0,109930.0,0.3521]
[1761235738069,0.89412583,109940.0,109930.0,0.37345]
[1761235738475,0.89412583,109940.0,109930.0,0.37397]
[1761235738663,0.89512583,109940.0,109930.0,0.37397]
[1761235739079,0.89512583,109940.0,109930.0,0.35262]
[1761235739777,0.89612583,109940.0,109930.0,0.37397]
[1761235739970,0.5524699,109940.0,109930.0,0.4649183]
[1761235740576,0.1524699,109940.0,109930.0,0.4649183]
[1761235740771,0.1393999,109940.0,109930.0,0.4777583]
[1761235741477,0.1393999,109940.0,109930.0,0.35262]
[1761235741478,0.1524699,109940.0,109930.0,0.35262]
[1761235741671,0.1524699,109940.0,109930.0,0.37397]
[1761235741871,0.1524699,109940.0,109930.0,0.4649183]
[1761235742468,0.1524699,109940.0,109930.0,0.33]
[1761235742666,0.1524699,109940.0,109910.0,0.11298505]
[1761235742667,0.0909563,109920.0,109910.0,0.11298505]
[1761235742868,0.49169223,109920.0,109910.0,0.43695505]
[1761235743176,0.49169223,109920.0,109910.0,0.32397]
[1761235743572,0.1480363,109920.0,109910.0,0.32397]
[1761235743771,0.49169223,109920.0,109910.0,0.32397]
[1761235744368,0.0221,109920.0,109910.0,0.4277746]
[1761235744667,0.15948726,109930.0,109920.0,0.1477663]
[1761235744874,0.456563,109930.0,109920.0,0.4477663]
[1761235745264,0.49415726,109930.0,109920.0,0.34397]
[1761235745464,0.49415726,109930.0,109920.0,0.4477663]
[1761235745465,0.48108726,109930.0,109920.0,0.4477663]
[1761235745875,0.48208726,109930.0,109920.0,0.4477663]
[1761235746177,0.458563,109930.0,109920.0,0.4477663]
[1761235746472,0.471633,109930.0,109920.0,0.4477663]
[1761235747085,0.414553,109930.0,109920.0,0.4477663]
[1761235747275,0.36761,109930.0,109920.0,0.4477663]
[1761235747479,0.83980829,109930.0,109920.0,0.04397]
[1761235747684,0.83980829,109930.0,109920.0,0.31262]
[1761235747880,0.87233707,109930.0,109920.0,0.29]
[1761235748181,0.1480363,109920.0,109910.0,0.1349269]
[1761235748377,0.1480363,109920.0,109910.0,0.4149269]
[1761235748685,0.17256056,109920.0,109910.0,0.4149269]